fUSD/lending_fUSD_20250211
["ID","MTS","AMOUNT","RATE_DAILY","PERIOD"]
[352733915,1739283048476,-500.0,0.00010958,2]
[352733916,1739283048486,-500.0,0.00010958,2]
[352733917,1739283048496,-500.0,0.00010958,2]
[352733918,1739283048506,-500.0,0.00010958,2]
[352733919,1739283048516,-500.0,0.00010958,2]
[352733920,1739283048527,-500.0,0.00010958,2]
[352733921,1739283048539,-500.0,0.00010958,2]
[352733922,1739283048550,-500.0,0.00010958,2]
[352733923,1739283048560,-634.23,0.00010958,2]
[352733924,1739283048571,-500.0,0.00010958,2]
[352733925,1739283048581,-500.0,0.00010958,2]
[352733926,1739283048591,-500.0,0.00010958,2]
[352733927,1739283048602,-1375.79,0.00010958,2]
[352733928,1739283048616,-500.0,0.00010958,2]
[352733929,1739283048626,-500.0,0.00010958,2]
[352733930,1739283048637,-500.0,0.00010958,2]
[352733931,1739283048648,-1848.33,0.00010958,2]
[352733932,1739283048658,-500.0,0.00010958,2]
[352733933,1739283048669,-500.0,0.00010958,2]
[352733934,1739283048679,-582.27,0.00010958,2]
[352733935,1739283048690,-500.0,0.00010958,2]
[352733936,1739283048702,-853.65,0.00010958,2]
[352733937,1739283048713,-500.0,0.00010958,2]
[352733938,1739283048723,-500.0,0.00010958,2]
[352733939,1739283048734,-500.0,0.00010958,2]
[352733940,1739283048745,-507.19121886,0.00010958,2]
[352733941,1739283048756,-500.0,0.00010958,2]
[352733942,1739283048768,-1602.84,0.00010958,2]
[352733943,1739283048779,-1126.45,0.00010958,2]
[352733944,1739283048791,-500.0,0.00010958,2]
[352733945,1739283048801,-1623.28,0.00010958,2]
[352733946,1739283048811,-500.0,0.00010958,2]
[352733947,1739283048822,-1955.0,0.00010958,2]
[352733948,1739283048833,-1427.46,0.00010958,2]
[352733949,1739283048844,-1095.96,0.00010958,2]
[352733950,1739283048855,-500.0,0.00010958,2]
[352733951,1739283048866,-500.0,0.00010958,2]
[352733952,1739283048876,-733.7,0.00010958,2]
[352733953,1739283048887,-500.0,0.00010958,2]
[352733954,1739283048898,-507.93,0.00010958,2]
[352733955,1739283048909,-636.24,0.00010958,2]
[352733956,1739283048920,-1892.51,0.00010958,2]
[352733957,1739283048931,-1207.29,0.00010958,2]
[352733958,1739283048942,-500.0,0.00010958,2]
[352733959,1739283048953,-500.0,0.00010958,2]
[352733960,1739283048963,-1791.03,0.00010958,2]
[352733961,1739283048974,-500.0,0.00010958,2]
[352733962,1739283048985,-1757.72,0.00010958,2]
[352733963,1739283048997,-500.0,0.00010958,2]
[352733964,1739283049008,-500.0,0.00010958,2]
[352733965,1739283049018,-500.0,0.00010958,2]
[352733966,1739283049028,-500.0,0.00010958,2]
[352733967,1739283049041,-1102.03,0.00010958,2]
[352733968,1739283049051,-500.0,0.00010958,2]
[352733969,1739283049061,-500.0,0.00010958,2]
[352733970,1739283049073,-500.0,0.00010958,2]
[352733971,1739283049084,-500.0,0.00010958,2]
[352733972,1739283049096,-500.0,0.00010958,2]
[352733973,1739283049107,-504.35703949,0.00010958,2]
[352733974,1739283049119,-2171.34,0.00010958,2]
[352733975,1739283049131,-713.64,0.00010958,2]
[352733976,1739283049142,-4488.97,0.00010958,2]
[352733977,1739283049152,-500.0,0.00010958,2]
[352733978,1739283049162,-1078.79,0.00010958,2]
[352733979,1739283049172,-500.0,0.00010958,2]
[352733980,1739283049182,-501.56101778,0.00010958,2]
[352733981,1739283049193,-1189.98,0.00010958,2]
[352733982,1739283049204,-500.0,0.00010958,2]
[352733983,1739283049214,-2231.76,0.00010958,2]
[352733984,1739283049225,-3213.91,0.00010958,2]
[352733985,1739283049235,-500.0,0.00010958,2]
[352733986,1739283049246,-160.31703441,0.00010958,2]
[352733987,1739283049256,-500.0,0.00010958,2]
[352733988,1739283049267,-500.0,0.00010958,2]
[352733989,1739283049279,-504.57956533,0.00010958,2]
[352733990,1739283049289,-500.0,0.00010958,2]
[352733991,1739283049300,-500.0,0.00010958,2]
[352733992,1739283049311,-1985.57,0.00010958,2]
[352733993,1739283049321,-500.0,0.00010958,2]
[352733994,1739283049332,-500.0,0.00010958,2]
[352733995,1739283049342,-2233.07,0.00010958,2]
[352733996,1739283049353,-500.0,0.00010958,2]
[352733997,1739283049365,-2042.81,0.00010958,2]
[352733998,1739283049375,-500.0,0.00010958,2]
[352733999,1739283049387,-500.0,0.00010958,2]
[352734000,1739283049398,-501.28288618,0.00010958,2]
[352734001,1739283049408,-1475.61,0.00010958,2]
[352734002,1739283049419,-500.0,0.00010958,2]
[352734003,1739283049429,-520.8397869,0.00010958,2]
[352734004,1739283049443,-500.0,0.00010958,2]
[352734005,1739283049455,-500.0,0.00010958,2]
[352734006,1739283049466,-810.69,0.00010958,2]
[352734007,1739283049478,-500.0,0.00010958,2]
[352734008,1739283049489,-2371.13,0.00010958,2]
[352734009,1739283049500,-500.0,0.00010958,2]
[352734010,1739283049510,-500.0,0.00010958,2]
[352734011,1739283049520,-700.09,0.00010958,2]
[352734012,1739283049530,-1214.76,0.00010958,2]
[352734013,1739283049542,-2171.63,0.00010958,2]
[352734014,1739283049553,-2387.02,0.00010958,2]
[352734015,1739283049564,-620.08,0.00010958,2]
[352734016,1739283049575,-502.85360559,0.00010958,2]
[352734017,1739283049586,-500.0,0.00010958,2]
[352734018,1739283049597,-500.0,0.00010958,2]
[352734019,1739283049608,-500.0,0.00010958,2]
[352734020,1739283049623,-2310.94,0.00010958,2]
[352734021,1739283049634,-500.0,0.00010958,2]
[352734022,1739283049645,-2340.95,0.00010958,2]
[352734023,1739283049655,-500.0,0.00010958,2]
[352734024,1739283049667,-500.0,0.00010958,2]
[352734025,1739283049678,-5444.75,0.00010958,2]
[352734026,1739283049689,-1886.51,0.00010958,2]
[352734027,1739283049700,-500.0,0.00010958,2]
[352734028,1739283049710,-2886.17,0.00010958,2]
[352734029,1739283049721,-500.0,0.00010958,2]
[352734030,1739283049731,-727.8,0.00010958,2]
[352734031,1739283049741,-500.0,0.00010958,2]
[352734032,1739283049750,-707.04,0.00010958,2]
[352734033,1739283049760,-500.0,0.00010958,2]
[352734034,1739283049769,-500.0,0.00010958,2]
[352734035,1739283049779,-2343.44,0.00010958,2]
[352734036,1739283049791,-500.0,0.00010958,2]
[352734037,1739283049803,-500.0,0.00010958,2]
[352734038,1739283049817,-937.33,0.00010958,2]
[352734039,1739283049826,-1158.26,0.00010958,2]
[352734040,1739283049836,-500.0,0.00010958,2]
[352734041,1739283049846,-670.35,0.00010958,2]
[352734042,1739283049856,-500.0,0.00010958,2]
[352734043,1739283049869,-2558.39,0.00010958,2]
[352734044,1739283049878,-620.78,0.00010958,2]
[352734045,1739283049888,-502.43399734,0.00010958,2]
[352734046,1739283049897,-2007.68,0.00010958,2]
[352734047,1739283049907,-2648.76,0.00010958,2]
[352734048,1739283049916,-2171.75,0.00010958,2]
[352734049,1739283049925,-1085.29,0.00010958,2]
[352734050,1739283049934,-2434.45,0.00010958,2]
[352734051,1739283049944,-500.0,0.00010958,2]
[352734052,1739283049953,-500.0,0.00010958,2]
[352734053,1739283049962,-731.57,0.00010958,2]
[352734054,1739283049971,-500.0,0.00010958,2]
[352734055,1739283049981,-500.0,0.00010958,2]
[352734056,1739283049990,-2583.49,0.00010958,2]
[352734057,1739283049999,-504.23670663,0.00010958,2]
[352734058,1739283050008,-501.64082515,0.00010958,2]
[352734059,1739283050018,-2031.5,0.00010958,2]
[352734060,1739283050027,-500.0,0.00010958,2]
[352734061,1739283050036,-500.0,0.00010958,2]
[352734062,1739283050047,-3062.38,0.00010958,2]
[352734063,1739283050056,-500.0,0.00010958,2]
[352734064,1739283050065,-713.43,0.00010958,2]
[352734065,1739283050075,-1845.16,0.00010958,2]
[352734066,1739283050084,-2068.15,0.00010958,2]
[352734067,1739283050094,-3061.99,0.00010958,2]
[352734068,1739283050103,-500.0,0.00010958,2]
[352734069,1739283050113,-1009.34,0.00010958,2]
[352734070,1739283050122,-2900.54,0.00010958,2]
[352734071,1739283050131,-502.63950676,0.00010958,2]
[352734072,1739283050141,-500.0,0.00010958,2]
[352734073,1739283050151,-2626.43,0.00010958,2]
[352734074,1739283050160,-500.0,0.00010958,2]
[352734075,1739283050169,-500.0,0.00010958,2]
[352734076,1739283050179,-2213.47,0.00010958,2]
[352734077,1739283050188,-519.22409967,0.00010958,2]
[352734078,1739283050197,-500.0,0.00010958,2]
[352734079,1739283050207,-500.0,0.00010958,2]
[352734080,1739283050217,-2309.34,0.00010958,2]
[352734081,1739283050226,-500.0,0.00010958,2]
[352734082,1739283050235,-7282.99,0.00010958,2]
[352734083,1739283050245,-1952.41,0.00010958,2]
[352734084,1739283050255,-701.48,0.00010958,2]
[352734085,1739283050265,-1931.94,0.00010958,2]
[352734086,1739283050274,-500.0,0.00010958,2]
[352734087,1739283050283,-500.0,0.00010958,2]
[352734088,1739283050295,-500.0,0.00010958,2]
[352734089,1739283050304,-500.0,0.00010958,2]
[352734090,1739283050314,-5326.26,0.00010958,2]
[352734091,1739283050323,-500.0,0.00010958,2]
[352734092,1739283050333,-3327.15,0.00010958,2]
[352734093,1739283050342,-500.0,0.00010958,2]
[352734094,1739283050351,-1259.82,0.00010958,2]
[352734095,1739283050361,-500.0,0.00010958,2]
[352734096,1739283050370,-301.46395054,0.00010958,2]
[352734097,1739283050381,-500.0,0.00010958,2]
[352734098,1739283050390,-500.0,0.00010958,2]
[352734099,1739283050400,-667.96,0.00010958,2]
[352734100,1739283050409,-500.0,0.00010958,2]
[352734101,1739283050418,-501.80143918,0.00010958,2]
[352734102,1739283050427,-500.0,0.00010958,2]
[352734103,1739283050437,-3450.17,0.00010958,2]
[352734104,1739283050447,-500.0,0.00010958,2]
[352734105,1739283050456,-500.0,0.00010958,2]
[352734106,1739283050465,-1704.66,0.00010958,2]
[352734107,1739283050474,-500.0,0.00010958,2]
[352734108,1739283050483,-500.0,0.00010958,2]
[352734109,1739283050493,-2127.38,0.00010958,2]
[352734110,1739283050502,-500.0,0.00010958,2]
[352734111,1739283050512,-500.0,0.00010958,2]
[352734112,1739283050522,-614.96884857,0.00010958,2]
[352734113,1739283050532,-500.0,0.00010958,2]
[352734114,1739283050542,-500.0,0.00010958,2]
[352734115,1739283050552,-500.0,0.00010958,2]
[352734116,1739283050562,-500.0,0.00010958,2]
[352734117,1739283050571,-1476.79,0.00010958,2]
[352734118,1739283050580,-1839.16,0.00010958,2]
[352734119,1739283050590,-889.84,0.00010958,2]
[352734120,1739283050599,-500.0,0.00010958,2]
[352734121,1739283050608,-502.49627225,0.00010958,2]
[352734122,1739283050621,-2565.16,0.00010958,2]
[352734123,1739283050629,-500.0,0.00010958,2]
[352734124,1739283050639,-2467.78,0.00010958,2]
[352734125,1739283050648,-500.0,0.00010958,2]
[352734126,1739283050658,-500.0,0.00010958,2]
[352734127,1739283050667,-500.0,0.00010958,2]
[352734128,1739283050677,-500.0,0.00010958,2]
[352734129,1739283050687,-1657.8,0.00010958,2]
[352734130,1739283050697,-683.49,0.00010958,2]
[352734131,1739283050706,-503.56238895,0.00010958,2]
[352734132,1739283050715,-500.0,0.00010958,2]
[352734133,1739283050725,-500.0,0.00010958,2]
[352734134,1739283050734,-1036.17,0.00010958,2]
[352734135,1739283050744,-2953.99,0.00010958,2]
[352734136,1739283050753,-500.0,0.00010958,2]
[352734137,1739283050763,-504.3250453,0.00010958,2]
[352734138,1739283050772,-500.0,0.00010958,2]
[352734139,1739283050782,-2380.39,0.00010958,2]
[352734140,1739283050793,-1433.77,0.00010958,2]
[352734141,1739283050803,-500.0,0.00010958,2]
[352734142,1739283050812,-515.30548674,0.00010958,2]
[352734143,1739283050822,-500.0,0.00010958,2]
[352734144,1739283050831,-1071.62,0.00010958,2]
[352734145,1739283050840,-1274.15,0.00010958,2]
[352734146,1739283050850,-500.0,0.00010958,2]
[352734147,1739283050859,-2875.82,0.00010958,2]
[352734148,1739283050868,-500.0,0.00010958,2]
[352734149,1739283050878,-500.0,0.00010958,2]
[352734150,1739283050888,-1027.27,0.00010958,2]
[352734151,1739283050897,-855.01,0.00010958,2]
[352734152,1739283050907,-500.0,0.00010958,2]
[352734153,1739283050916,-1213.71,0.00010958,2]
[352734154,1739283050926,-500.0,0.00010958,2]
[352734155,1739283050935,-500.0,0.00010958,2]
[352734156,1739283050945,-727.11,0.00010958,2]
[352734157,1739283050955,-500.0,0.00010958,2]
[352734158,1739283050965,-2384.33,0.00010958,2]
[352734159,1739283050974,-1743.04,0.00010958,2]
[352734160,1739283050983,-713.14,0.00010958,2]
[352734161,1739283050993,-2037.92,0.00010958,2]
[352734162,1739283051002,-500.0,0.00010958,2]
[352734163,1739283051011,-1210.9,0.00010958,2]
[352734164,1739283051021,-500.0,0.00010958,2]
[352734165,1739283051030,-3335.18,0.00010958,2]
[352734166,1739283051041,-500.0,0.00010958,2]
[352734167,1739283051051,-500.0,0.00010958,2]
[352734168,1739283051061,-500.0,0.00010958,2]
[352734169,1739283051070,-1000.0,0.00010958,2]
[352734170,1739283051081,-496.58,0.00010958,2]
[352734171,1739283051090,-125375.40942884,0.00010958,2]
[352734172,1739283051100,-1000.0,0.00010958,2]
[352734173,1739283051109,-1000.0,0.00010958,2]
[352734174,1739283051118,-1000.0,0.00010958,2]
[352734175,1739283051128,-1000.0,0.00010958,2]
[352734176,1739283051137,-1000.0,0.00010958,2]
[352734177,1739283051147,-428.0,0.00010958,2]
[352734178,1739283051157,-1000.0,0.00010958,2]
[352734179,1739283051166,-1000.0,0.00010958,2]
[352734180,1739283051176,-1000.0,0.00010958,2]
[352734181,1739283051187,-1000.0,0.00010958,2]
[352734182,1739283051203,-1000.0,0.00010958,2]
[352734183,1739283051215,-1000.0,0.00010958,2]
[352734184,1739283051230,-1000.0,0.00010958,2]
[352734185,1739283051240,-1000.0,0.00010958,2]
[352734186,1739283051249,-1000.0,0.00010958,2]
[352734187,1739283051259,-1000.0,0.00010958,2]
[352734188,1739283051268,-1000.0,0.00010958,2]
[352734189,1739283051278,-1000.0,0.00010958,2]
[352734190,1739283051290,-1000.0,0.00010958,2]
[352734191,1739283051299,-1000.0,0.00010958,2]
[352734192,1739283051309,-1000.0,0.00010958,2]
[352734193,1739283051319,-1000.0,0.00010958,2]
[352734194,1739283051328,-1000.0,0.00010958,2]
[352734195,1739283051337,-1000.0,0.00010958,2]
[352734196,1739283051347,-1000.0,0.00010958,2]
[352734197,1739283051356,-1000.0,0.00010958,2]
[352734198,1739283051365,-1000.0,0.00010958,2]
[352734199,1739283051375,-1000.0,0.00010958,2]
[352734200,1739283051384,-1000.0,0.00010958,2]
[352734201,1739283051394,-1000.0,0.00010958,2]
[352734202,1739283051403,-1000.0,0.00010958,2]
[352734203,1739283051413,-1000.0,0.00010958,2]
[352734204,1739283051422,-1000.0,0.00010958,2]
[352734205,1739283051431,-1000.0,0.00010958,2]
[352734206,1739283051441,-1000.0,0.00010958,2]
[352734207,1739283051451,-1000.0,0.00010958,2]
[352734208,1739283051460,-1000.0,0.00010958,2]
[352734209,1739283051470,-1000.0,0.00010958,2]
[352734210,1739283051479,-1000.0,0.00010958,2]
[352734211,1739283051489,-1000.0,0.00010958,2]
[352734212,1739283051498,-1000.0,0.00010958,2]
[352734213,1739283051508,-1000.0,0.00010958,2]
[352734214,1739283051517,-1000.0,0.00010958,2]
[352734215,1739283051526,-1000.0,0.00010958,2]
[352734216,1739283051535,-1000.0,0.00010958,2]
[352734217,1739283051545,-1000.0,0.00010958,2]
[352734218,1739283051555,-1000.0,0.00010958,2]
[352734219,1739283051564,-1000.0,0.00010958,2]
[352734220,1739283051573,-1000.0,0.00010958,2]
[352734221,1739283051583,-1000.0,0.00010958,2]
[352734222,1739283051592,-1000.0,0.00010958,2]
[352734223,1739283051601,-1000.0,0.00010958,2]
[352734224,1739283051612,-1000.0,0.00010958,2]
[352734225,1739283051624,-1000.0,0.00010958,2]
[352734226,1739283051634,-1000.0,0.00010958,2]
[352734227,1739283051643,-1000.0,0.00010958,2]
[352734228,1739283051864,-1000.0,0.00010958,2]
[352734229,1739283051874,-1000.0,0.00010958,2]
[352734230,1739283051885,-1000.0,0.00010958,2]
[352734231,1739283051894,-1000.0,0.00010958,2]
[352734232,1739283051904,-1000.0,0.00010958,2]
[352734233,1739283051913,-1000.0,0.00010958,2]
[352734234,1739283051923,-1000.0,0.00010958,2]
[352734235,1739283051933,-1000.0,0.00010958,2]
[352734236,1739283051942,-1000.0,0.00010958,2]
[352734237,1739283051952,-1000.0,0.00010958,2]
[352734238,1739283051961,-1000.0,0.00010958,2]
[352734239,1739283051971,-1000.0,0.00010958,2]
[352734240,1739283051980,-1000.0,0.00010958,2]
[352734241,1739283051989,-1000.0,0.00010958,2]
[352734242,1739283051998,-1000.0,0.00010958,2]
[352734243,1739283052008,-1000.0,0.00010958,2]
[352734244,1739283052017,-1000.0,0.00010958,2]
[352734245,1739283052026,-1000.0,0.00010958,2]
[352734246,1739283052036,-1000.0,0.00010958,2]
[352734247,1739283052045,-1000.0,0.00010958,2]
[352734248,1739283052054,-1000.0,0.00010958,2]
[352734249,1739283052063,-1000.0,0.00010958,2]
[352734250,1739283052072,-1000.0,0.00010958,2]
[352734251,1739283052082,-1000.0,0.00010958,2]
[352734252,1739283052091,-1000.0,0.00010958,2]
[352734253,1739283052099,-1000.0,0.00010958,2]
[352734254,1739283052109,-150.0,0.00010959,2]
[352734255,1739283052118,-539.416,0.00010959,2]
[352734256,1739283052127,-1524.47663064,0.00010981,2]
[352734257,1739283052137,-225.30471811,0.00010986,2]
[352734258,1739283052146,-225.3047181,0.00010986,2]
[352734259,1739283052155,-337.95707717,0.00010986,2]
[352734260,1739283052164,-563.26179527,0.00010986,2]
[352734261,1739283052174,-169.72677424,0.00010995,2]
[352734262,1739283052183,-500.0,0.00011,2]
[352734263,1739283052192,-500.0,0.00011,2]
[352734264,1739283052202,-500.0,0.00011,2]
[352734265,1739283052212,-636.0,0.00011,2]
[352734266,1739283052221,-500.0,0.00011,2]
[352734267,1739283052230,-500.0,0.00011,2]
[352734268,1739283052239,-500.0,0.00011,2]
[352734269,1739283052248,-500.0,0.00011,2]
[352734270,1739283052258,-500.0,0.00011,2]
[352734271,1739283052267,-296.66,0.00011022,2]
[352734272,1739283052277,-225.30471811,0.00011041,2]
[352734273,1739283052288,-225.3047181,0.00011041,2]
[352734274,1739283052298,-337.95707717,0.00011041,2]
[352734275,1739283052307,-563.26179527,0.00011041,2]
[352734276,1739283052317,-182.46260651,0.0001108,2]
[352734277,1739283052327,-500.0,0.00011089,2]
[352734278,1739283052337,-1154.48,0.00011089,2]
[352734279,1739283052346,-1154.48,0.00011089,2]
[352734280,1739283052355,-1154.48,0.00011089,2]
[352734281,1739283052365,-1154.48,0.00011089,2]
[352734282,1739283052374,-1154.48,0.00011089,2]
[352734283,1739283052384,-1154.48,0.00011089,2]
[352734284,1739283052393,-1154.68,0.00011089,2]
[352734285,1739283052403,-1114.15,0.00011089,2]
[352734286,1739283052412,-1907.79,0.00011089,2]
[352734287,1739283052422,-501.29771038,0.00011089,2]
[352734288,1739283052431,-500.0,0.00011089,2]
[352734289,1739283052440,-2042.7,0.00011089,2]
[352734290,1739283052449,-371.49346741,0.00011089,2]
[352734291,1739283052458,-2608.79,0.00011089,2]
[352734292,1739283052468,-250.0,0.00011089,2]
[352734293,1739283052477,-500.0,0.00011089,2]
[352734294,1739283052486,-250000.0,0.0001109,2]
[352734295,1739283052495,-500.0,0.00011094,2]
[352734296,1739283052505,-352.54876365,0.00011094,2]
[352734297,1739283052515,-500.0,0.00011094,2]
[352734298,1739283052524,-500.0,0.00011094,2]
[352734299,1739283052533,-500.0,0.00011094,2]
[352734300,1739283052544,-300.0,0.00011094,2]
[352734301,1739283052555,-500.0,0.00011095,2]
[352734302,1739283052564,-617.55530234,0.00011095,2]
[352734303,1739283052573,-500.0,0.00011095,2]
[352734304,1739283052582,-500.0,0.00011095,2]
[352734305,1739283052592,-500.0,0.00011095,2]
[352734306,1739283052602,-500.0,0.00011095,2]
[352734307,1739283052614,-500.0,0.00011095,2]
[352734308,1739283052625,-500.0,0.00011095,2]
[352734309,1739283052635,-500.0,0.00011095,2]
[352734310,1739283052644,-500.0,0.00011095,2]
[352734311,1739283052655,-500.0,0.00011095,2]
[352734312,1739283052664,-500.0,0.00011095,2]
[352734313,1739283052673,-500.0,0.00011095,2]
[352734314,1739283052682,-500.0,0.00011095,2]
[352734315,1739283052692,-500.0,0.00011095,2]
[352734316,1739283052702,-500.0,0.00011095,2]
[352734317,1739283052711,-500.0,0.00011095,2]
[352734318,1739283052720,-500.0,0.00011095,2]
[352734319,1739283052730,-500.0,0.00011095,2]
[352734320,1739283052739,-500.0,0.00011095,2]
[352734321,1739283052749,-506.64384469,0.00011095,2]
[352734322,1739283052758,-173.2521789,0.00011095,2]
[352734323,1739283052767,-500.0,0.00011095,2]
[352734324,1739283052776,-505.54211063,0.00011095,2]
[352734325,1739283052787,-500.0,0.00011095,2]
[352734326,1739283052796,-500.0,0.00011095,2]
[352734327,1739283052806,-500.0,0.00011095,2]
[352734328,1739283052815,-545.31,0.00011095,2]
[352734329,1739283052825,-505.84720411,0.00011095,2]
[352734330,1739283052834,-500.0,0.00011095,2]
[352734331,1739283052844,-500.0,0.00011095,2]
[352734332,1739283052854,-500.0,0.00011095,2]
[352734333,1739283052864,-500.0,0.00011095,2]
[352734334,1739283052873,-500.0,0.00011095,2]
[352734335,1739283052883,-500.0,0.00011095,2]
[352734336,1739283052893,-500.0,0.00011095,2]
[352734337,1739283052903,-500.0,0.00011095,2]
[352734338,1739283052912,-500.0,0.00011095,2]
[352734339,1739283052923,-352.9234566,0.00011095,2]
[352734340,1739283052933,-500.0,0.00011095,2]
[352734341,1739283052943,-500.0,0.00011095,2]
[352734342,1739283052953,-500.0,0.00011095,2]
[352734343,1739283052962,-500.0,0.00011095,2]
[352734344,1739283052973,-500.0,0.00011095,2]
[352734345,1739283052983,-623.89,0.00011095,2]
[352734346,1739283052993,-2289.514115,0.00011095,2]
[352734347,1739283053004,-500.0,0.00011095,2]
[352734348,1739283053018,-500.0,0.00011095,2]
[352734349,1739283053027,-500.0,0.00011095,2]
[352734350,1739283053038,-504.78926002,0.00011095,2]
[352734351,1739283053047,-509.89422423,0.00011095,2]
[352734352,1739283053057,-500.0,0.00011095,2]
[352734353,1739283053067,-912.071354,0.00011095,2]
[352734354,1739283053076,-562.39,0.00011095,2]
[352734355,1739283053085,-500.0,0.00011095,2]
[352734356,1739283053095,-500.0,0.00011095,2]
[352734357,1739283053104,-500.0,0.00011095,2]
[352734358,1739283053114,-500.0,0.00011095,2]
[352734359,1739283053124,-500.0,0.00011095,2]
[352734360,1739283053133,-525.69946484,0.00011095,2]
[352734361,1739283053143,-1335.42,0.00011095,2]
[352734362,1739283053152,-500.0,0.00011095,2]
[352734363,1739283053161,-500.0,0.00011095,2]
[352734364,1739283053171,-500.0,0.00011095,2]
[352734365,1739283053180,-500.0,0.00011095,2]
[352734366,1739283053190,-500.0,0.00011095,2]
[352734367,1739283053199,-500.0,0.00011095,2]
[352734368,1739283053209,-513.07166307,0.00011095,2]
[352734369,1739283053218,-500.0,0.00011095,2]
[352734370,1739283053227,-1026.73,0.00011095,2]
[352734371,1739283053237,-500.0,0.00011095,2]
[352734372,1739283053246,-500.0,0.00011095,2]
[352734373,1739283053255,-500.0,0.00011095,2]
[352734374,1739283053265,-500.0,0.00011095,2]
[352734375,1739283053274,-1291.73,0.00011095,2]
[352734376,1739283053283,-500.0,0.00011095,2]
[352734377,1739283053294,-500.0,0.00011095,2]
[352734378,1739283053304,-629.05265236,0.00011095,2]
[352734379,1739283053313,-500.0,0.00011095,2]
[352734380,1739283053324,-500.0,0.00011095,2]
[352734381,1739283053333,-507.07363615,0.00011095,2]
[352734382,1739283053342,-500.0,0.00011095,2]
[352734383,1739283053352,-551.46125929,0.00011095,2]
[352734384,1739283053361,-500.0,0.00011095,2]
[352734385,1739283053371,-1006.21,0.00011095,2]
[352734386,1739283053380,-500.0,0.00011095,2]
[352734387,1739283053389,-500.0,0.00011095,2]
[352734388,1739283053398,-500.0,0.00011095,2]
[352734389,1739283053407,-500.0,0.00011095,2]
[352734390,1739283053417,-654.08,0.00011095,2]
[352734391,1739283053427,-500.0,0.00011095,2]
[352734392,1739283053436,-500.0,0.00011095,2]
[352734393,1739283053445,-500.0,0.00011095,2]
[352734394,1739283053455,-500.0,0.00011095,2]
[352734395,1739283053464,-500.0,0.00011095,2]
[352734396,1739283053473,-500.0,0.00011095,2]
[352734397,1739283053483,-500.0,0.00011095,2]
[352734398,1739283053492,-500.0,0.00011095,2]
[352734399,1739283053502,-648.91,0.00011095,2]
[352734400,1739283053511,-500.0,0.00011095,2]
[352734401,1739283053521,-829.91,0.00011095,2]
[352734402,1739283053530,-500.0,0.00011095,2]
[352734403,1739283053541,-500.0,0.00011095,2]
[352734404,1739283053551,-500.0,0.00011095,2]
[352734405,1739283053560,-500.0,0.00011095,2]
[352734406,1739283053570,-1283.05,0.00011095,2]
[352734407,1739283053580,-366.05049934,0.00011095,2]
[352734408,1739283053589,-500.0,0.00011095,2]
[352734409,1739283053599,-550.12102332,0.00011095,2]
[352734410,1739283053609,-500.0,0.00011095,2]
[352734411,1739283053623,-500.0,0.00011095,2]
[352734412,1739283053632,-500.0,0.00011095,2]
[352734413,1739283053641,-500.0,0.00011095,2]
[352734414,1739283053653,-500.0,0.00011095,2]